bitfinex-derivatives/quotes_BNBF0:USTF0_20251225
["timestamp","ask_amount","ask_price","bid_price","bid_amount"]
[1766677506282,0.88064627,844.69,843.31,0.87105167]
[1766677506483,0.88064627,844.69,843.3,0.87105167]
[1766677506683,0.88064627,844.61,843.22,0.87105167]
[1766677506886,0.88064627,844.55,843.16,0.87105167]
[1766677507083,0.88064627,844.5,843.12,0.87105167]
[1766677507285,0.88064627,844.43,843.05,0.87105167]
[1766677507486,0.88064627,844.42,843.04,0.87105167]
[1766677507686,0.88064627,844.36,842.98,0.87105167]
[1766677507879,1.7736722,844.66,842.07,2.97121127]
[1766677507880,0.88064627,844.39,843.01,0.87105167]
[1766677508085,0.88064627,844.38,843.0,0.87105167]
[1766677508687,0.88064627,844.41,843.02,0.87105167]
[1766677508888,0.88064627,844.48,843.09,0.87105167]
[1766677509088,0.88064627,844.49,843.11,0.87105167]
[1766677509284,0.88064627,844.46,843.09,0.87105167]
[1766677509587,0.20597871,844.99,843.1,0.87105167]
[1766677509588,0.88064627,844.48,843.1,0.87105167]
[1766677510585,0.88064627,844.5,843.12,0.87105167]
[1766677510785,0.88064627,844.57,843.19,0.87105167]
[1766677511189,0.88064627,844.6,843.22,0.87105167]
[1766677511490,0.88064627,844.66,843.28,0.87105167]
[1766677511886,0.88064627,844.68,843.29,0.87105167]
[1766677512287,0.88064627,844.67,843.29,0.87105167]
[1766677512588,0.88064627,844.77,843.39,0.87105167]
[1766677512891,0.88064627,844.82,843.44,0.87105167]
[1766677513188,0.88064627,844.86,843.47,0.87105167]
[1766677513391,0.88064627,844.87,843.49,0.87105167]
[1766677513588,0.88064627,844.91,843.53,0.87105167]
[1766677513793,0.88064627,844.89,843.51,0.87105167]
[1766677514193,0.88064627,844.88,843.5,0.87105167]
[1766677514390,0.88064627,844.86,843.48,0.87105167]
[1766677515095,0.88064627,844.83,843.45,0.87105167]
[1766677515292,0.88064627,844.78,843.41,0.87105167]
[1766677515491,0.88064627,844.62,843.26,0.87105167]
[1766677515693,0.88064627,844.61,843.26,0.87105167]
[1766677516397,0.88064627,844.58,843.24,0.87105167]
[1766677516695,0.88064627,844.42,843.08,0.87105167]
[1766677516895,0.88064627,844.42,843.09,0.87105167]
[1766677517092,0.88064627,844.43,843.09,0.87105167]
[1766677517297,0.88064627,844.43,843.1,0.87105167]
[1766677517596,0.88064627,844.49,843.16,0.87105167]
[1766677518291,0.88064627,844.49,843.17,0.87105167]
[1766677518496,0.88064627,844.48,843.17,0.87105167]
[1766677518792,0.88064627,844.68,843.36,0.87105167]
[1766677519496,0.88064627,844.67,843.37,0.87105167]
[1766677520294,0.88064627,844.77,843.49,0.87105167]
[1766677520899,0.88064627,844.78,843.51,0.87105167]
[1766677521095,0.88064627,844.85,843.58,0.87105167]
[1766677521596,0.88064627,844.86,843.59,0.87105167]
[1766677521796,0.88064627,844.9,843.63,0.87105167]
[1766677522097,0.88064627,844.91,843.64,0.87105167]
[1766677522302,0.20597871,844.99,843.82,0.87105167]
[1766677522501,0.20597871,844.99,843.8,0.87105167]
[1766677522702,0.20597871,844.99,843.81,0.87105167]
[1766677523202,0.20597871,844.99,843.78,0.87105167]
[1766677523401,0.20597871,844.99,843.64,12.88851601]
[1766677523402,0.20597871,844.99,843.77,0.87105167]
[1766677523695,0.20597871,844.99,843.75,0.87105167]
[1766677523899,0.20597871,844.99,843.76,0.87105167]
[1766677524200,0.20597871,844.99,843.69,0.87105167]
[1766677524402,0.88064627,844.98,843.66,0.87105167]
[1766677524600,0.88064627,844.96,843.65,0.87105167]
[1766677524801,0.88064627,844.85,843.64,12.88851601]
[1766677525002,0.88064627,844.83,843.64,12.88851601]
[1766677525397,0.88064627,844.81,843.64,12.88851601]
[1766677525698,0.88064627,844.79,843.48,0.87105167]
[1766677527905,0.88064627,844.82,843.51,0.87105167]
[1766677528204,0.88064627,844.96,843.64,0.87105167]
[1766677528603,0.88064627,844.98,843.66,0.87105167]
[1766677529103,0.88064627,844.96,843.65,0.87105167]
[1766677529305,0.88064627,844.98,843.66,0.87105167]
[1766677529501,0.20597871,844.99,843.67,0.87105167]
[1766677530005,0.88064627,844.98,843.66,0.87105167]
[1766677530301,0.20597871,844.99,843.67,0.87105167]
[1766677530604,0.88064627,844.98,843.65,0.87105167]
[1766677531402,1.08662498,844.99,843.65,0.87105167]
[1766677533514,1.08662498,844.99,843.64,0.87105167]
[1766677534316,1.08662498,844.99,843.49,1.18848451]
[1766677534317,1.08662498,844.99,843.65,0.87105167]
[1766677534514,1.08662498,844.99,843.64,0.87105167]
[1766677535612,0.20597871,844.99,843.64,0.87105167]
[1766677536418,0.88064627,844.98,843.62,0.87105167]
[1766677537914,0.88064627,844.97,843.61,0.87105167]
[1766677538114,0.88064627,844.95,843.59,0.87105167]
[1766677538618,0.88064627,844.81,843.45,0.87105167]
[1766677541115,0.88064627,844.79,843.43,0.87105167]
[1766677541715,0.88064627,844.73,843.37,0.87105167]
[1766677541914,0.88064627,844.73,843.22,1.18848451]
[1766677541915,0.88064627,844.58,843.23,0.87105167]
[1766677542116,0.88064627,844.6,843.24,0.87105167]
[1766677542314,0.88064627,844.6,843.25,0.87105167]
[1766677542518,0.88064627,844.59,843.24,0.87105167]
[1766677542716,0.88064627,844.6,843.25,0.87105167]
[1766677542920,0.88064627,844.59,843.24,0.87105167]
[1766677543118,0.88064627,844.59,843.25,12.70132022]
[1766677543522,0.88064627,844.57,843.25,12.70132022]
[1766677544418,0.88064627,844.56,843.25,12.70132022]
[1766677545716,0.88064627,844.51,843.25,12.70132022]
[1766677546322,0.88064627,844.52,843.18,0.87105167]
[1766677547323,0.88064627,844.55,843.2,0.87105167]
[1766677548318,0.88064627,844.54,843.22,0.87105167]
[1766677548722,0.88064627,844.56,843.23,0.87105167]
[1766677548923,0.88064627,844.57,843.25,0.87105167]
[1766677549320,0.88064627,844.55,843.26,0.87105167]
[1766677549821,0.88064627,844.53,843.24,0.87105167]
[1766677550024,0.88064627,844.52,843.23,0.87105167]
[1766677550220,0.88064627,844.51,843.22,0.87105167]
[1766677550421,0.88064627,844.52,843.24,0.87105167]
[1766677551221,0.88064627,844.43,843.14,0.87105167]
[1766677551423,0.88064627,844.41,843.13,0.87105167]
[1766677551821,0.88064627,844.39,843.13,0.87105167]
[1766677552021,0.88064627,844.35,843.07,0.87105167]
[1766677552223,0.88064627,844.33,843.04,0.87105167]
[1766677552525,0.88064627,844.21,842.92,0.87105167]
[1766677552726,0.88064627,844.22,842.93,0.87105167]
[1766677553124,0.88064627,844.29,843.0,0.87105167]
[1766677554227,0.88064627,844.29,842.99,0.87105167]
[1766677554930,0.88064627,844.28,842.98,0.87105167]
[1766677555131,0.88064627,844.27,842.96,0.87105167]
[1766677556332,0.20597871,844.99,842.88,0.87105167]
[1766677556333,0.88064627,844.22,842.88,0.87105167]
[1766677556827,0.88064627,844.19,842.85,0.87105167]
[1766677557531,0.88064627,844.21,842.84,0.87105167]
[1766677558330,0.88064627,844.25,842.85,0.87105167]
[1766677558927,0.88064627,844.27,842.87,0.87105167]
[1766677559228,0.88064627,844.33,842.91,0.87105167]
[1766677560334,0.88064627,844.33,842.9,0.87105167]
[1766677561231,0.88064627,844.36,842.93,0.87105167]
[1766677561429,0.88064627,844.35,842.91,0.87105167]
[1766677561732,0.88064627,844.34,842.9,0.87105167]
[1766677562132,0.88064627,844.34,842.89,0.87105167]
[1766677563132,0.88064627,844.32,842.87,0.87105167]
[1766677563328,0.88064627,844.22,842.76,0.87105167]
[1766677563532,0.88064627,844.22,841.85,2.97121127]
[1766677563533,0.88064627,844.13,842.67,0.87105167]
[1766677563733,0.88064627,844.04,842.58,0.87105167]
[1766677563930,0.88064627,844.03,842.57,0.87105167]
[1766677564134,0.88064627,843.94,842.44,0.87105167]
[1766677564330,0.88064627,843.95,842.43,0.87105167]
[1766677564536,0.88064627,843.92,842.41,0.87105167]
[1766677564934,0.88064627,843.95,842.44,0.87105167]
[1766677565135,0.88064627,844.0,842.44,0.87105167]
[1766677565431,0.88064627,844.02,842.45,0.87105167]
[1766677565635,0.88064627,844.05,842.48,0.87105167]
[1766677565835,0.88064627,844.09,842.52,0.87105167]
[1766677566031,0.88064627,844.09,842.52,14.02912379]
[1766677566235,0.88064627,844.1,842.52,13.15807212]
[1766677566436,0.88064627,844.19,842.6,0.87105167]
[1766677566632,0.88064627,844.2,842.6,0.87105167]
[1766677567434,0.88064627,844.19,842.59,0.87105167]
[1766677567639,0.88064627,844.18,842.59,0.87105167]
[1766677568040,0.88064627,844.17,842.58,0.87105167]
[1766677568241,0.88064627,844.17,842.52,13.15807212]
[1766677568242,0.88064627,844.18,842.57,0.87105167]
[1766677568441,0.88064627,844.16,842.56,0.87105167]
[1766677568740,0.88064627,844.15,842.55,0.87105167]
[1766677568936,0.88064627,844.1,842.52,13.15807212]
[1766677569136,0.88064627,844.11,842.49,0.87105167]
[1766677569340,0.88064627,844.08,842.46,0.87105167]
[1766677569537,0.88064627,844.01,842.4,0.87105167]
[1766677569736,0.88064627,843.99,842.37,0.87105167]
[1766677570340,1.7736722,844.29,841.53,0.00847465]
[1766677570341,0.88064627,844.0,842.36,0.87105167]
[1766677570837,0.87850898,844.0,842.36,0.86802696]
[1766677571436,0.87850898,844.0,842.06,1.77375381]
[1766677571437,0.87850898,844.01,842.34,0.86802696]
[1766677571835,0.87850898,844.01,842.04,1.77375381]
[1766677571836,0.87850898,843.83,842.16,0.86802696]
[1766677572037,0.87850898,843.83,841.25,2.97121127]
[1766677572038,0.87850898,843.8,842.14,0.86802696]
[1766677572237,0.87850898,843.81,842.09,0.86802696]
[1766677572639,0.87850898,843.81,841.94,1.18848451]
[1766677572640,0.87850898,843.83,842.11,0.86802696]
[1766677573043,0.87850898,843.91,842.19,0.86802696]
[1766677573240,0.87850898,843.94,842.2,0.86802696]
[1766677573943,0.87850898,843.94,842.05,1.18848451]
[1766677573944,0.87850898,843.91,842.18,0.86802696]
[1766677574144,0.87850898,843.93,842.16,0.86802696]
[1766677574344,2.97660268,844.84,842.19,0.86802696]
[1766677574345,0.87850898,843.92,842.19,0.86802696]
[1766677574541,0.87850898,843.94,842.19,0.86802696]
[1766677574942,0.87850898,843.92,842.17,0.86802696]
[1766677575240,0.87850898,843.93,842.16,0.86802696]
[1766677575445,0.87850898,843.93,842.17,0.86802696]
[1766677576146,0.87850898,843.9,842.14,0.86802696]
[1766677576445,0.87850898,843.87,842.11,0.86802696]
[1766677576643,0.87850898,843.89,842.12,0.86802696]
[1766677577145,0.87850898,843.89,842.1,0.86802696]
[1766677577442,0.87850898,843.87,842.1,0.86802696]
[1766677578343,1.19064107,844.03,841.94,1.18848451]
[1766677578545,0.01208744,844.71,842.1,0.86700591]
[1766677578546,0.87707405,843.87,842.1,0.86700591]
[1766677579347,0.87707405,843.87,842.11,0.86700591]
[1766677579748,0.87707405,843.87,842.11,13.94397144]
[1766677580245,0.87707405,843.76,842.11,13.07696553]
[1766677581149,0.87707405,843.77,842.11,13.07696553]
[1766677581446,0.87707405,843.75,842.11,13.07696553]
[1766677581749,1.19064107,843.9,842.11,13.07696553]
[1766677581750,0.87707405,843.59,842.11,13.07696553]
[1766677581950,0.87707405,843.57,842.11,13.07696553]
[1766677582452,0.87707405,843.56,842.11,13.07696553]
[1766677582652,0.87707405,843.61,842.11,13.07696553]
[1766677582849,0.87707405,843.63,841.89,0.86700591]
[1766677583049,0.87707405,843.67,841.93,0.86700591]
[1766677583252,0.87707405,843.66,841.93,0.86700591]
[1766677584155,0.87707405,843.67,841.92,0.86700591]
[1766677584350,0.87707405,843.66,841.93,0.86700591]
[1766677584854,0.87707405,843.64,841.91,0.86700591]
[1766677585055,0.87707405,843.63,841.9,0.86700591]
[1766677585255,0.87707405,843.63,841.91,0.86700591]
[1766677586057,0.87707405,843.72,842.0,0.86700591]
[1766677586253,0.87707405,843.73,842.0,0.86700591]
[1766677586455,0.87707405,843.7,841.99,0.86700591]
[1766677587359,0.87707405,843.69,841.99,0.86700591]
[1766677588061,0.87707405,843.71,842.01,0.86700591]
[1766677588259,0.87707405,843.71,842.02,0.86700591]
[1766677589161,0.87707405,843.77,842.07,0.86700591]
[1766677589362,0.87707405,843.69,842.02,0.86700591]
[1766677589561,2.97660268,844.68,841.15,55.83152387]
[1766677589562,0.87707405,843.66,841.98,0.86700591]
[1766677590058,0.87707405,843.66,841.83,1.18848451]
[1766677590059,0.87707405,843.68,842.0,0.86700591]
[1766677590263,0.87707405,843.7,842.03,0.86700591]
[1766677590464,0.87707405,843.7,841.88,1.18848451]
[1766677590465,0.87707405,843.71,842.05,0.86700591]
[1766677590664,0.87707405,843.75,842.08,0.86700591]
[1766677591062,0.87707405,843.76,842.09,0.86700591]
[1766677591365,0.87707405,843.9,842.25,0.86700591]
[1766677592265,0.87707405,843.89,842.27,0.86700591]
[1766677593267,0.87707405,843.9,842.31,0.86700591]
[1766677594168,0.87707405,843.92,842.34,0.86700591]
[1766677594369,0.87707405,843.91,842.36,0.86700591]
[1766677594564,0.87707405,843.93,842.38,0.86700591]
[1766677595068,0.87707405,843.91,842.36,0.86700591]
[1766677595268,0.87707405,843.89,842.38,0.86700591]
[1766677596269,0.87707405,843.87,842.4,0.86700591]
[1766677597266,0.87707405,843.87,842.41,0.86700591]
[1766677597469,0.87707405,843.86,842.42,0.86700591]
[1766677597768,0.87707405,843.84,842.4,0.86700591]
[1766677598470,0.87707405,843.78,842.36,0.86700591]
[1766677598870,0.87707405,843.77,842.35,0.86700591]
[1766677599371,0.87707405,843.76,842.36,0.86700591]
[1766677600169,0.87707405,843.75,842.37,0.86700591]
[1766677600371,0.87707405,843.77,842.4,0.86700591]
[1766677601070,0.87707405,843.75,842.39,0.86700591]
[1766677601270,0.87707405,843.73,842.39,0.86700591]
[1766677602270,0.87707405,843.72,842.4,0.86700591]
[1766677602467,0.87707405,843.68,842.36,0.86700591]
[1766677602664,0.87707405,843.67,842.35,0.86700591]
[1766677602866,0.87707405,843.65,842.33,0.86700591]
[1766677603069,0.87707405,843.59,842.27,0.86700591]
[1766677603371,0.87707405,843.53,842.23,0.86700591]
[1766677603673,0.87707405,843.5,842.2,0.86700591]
[1766677604066,0.87707405,843.49,842.19,0.86700591]
[1766677604269,0.87707405,843.47,842.2,0.86700591]
[1766677605271,0.87707405,843.48,842.2,0.86700591]
[1766677605771,0.87707405,843.5,842.23,0.86700591]
[1766677606171,0.87707405,843.59,842.36,0.86700591]
[1766677606368,0.87707405,843.6,842.36,0.86700591]
[1766677607171,1.19064107,843.75,842.22,13.11712131]
[1766677607172,0.87707405,843.57,842.39,0.86700591]
[1766677607472,0.87707405,843.54,842.36,0.86700591]
[1766677608167,0.87707405,843.52,842.38,0.86700591]
[1766677609072,0.87707405,843.54,842.4,0.86700591]
[1766677609268,0.87707405,843.53,842.41,0.86700591]
[1766677610974,0.87707405,843.51,842.39,0.86700591]
[1766677611176,0.87707405,843.51,842.4,0.86700591]
[1766677611676,0.87707405,843.53,842.43,0.86700591]
[1766677612177,0.87707405,843.52,842.44,0.86700591]
[1766677613277,0.87707405,843.5,842.46,0.86700591]
[1766677614175,0.87707405,843.49,842.47,0.86700591]
[1766677615278,0.87707405,843.49,842.48,0.86700591]
[1766677615578,0.87707405,843.56,842.55,0.86700591]
[1766677615773,0.87707405,843.59,842.58,0.86700591]
[1766677615975,0.87707405,843.7,842.69,0.86700591]
[1766677616480,0.87707405,843.71,842.7,0.86700591]
[1766677617280,0.87707405,843.72,842.69,0.86700591]
[1766677618180,0.87707405,843.72,842.68,0.86700591]
[1766677619282,0.87707405,843.79,842.74,0.86700591]
[1766677620378,0.87707405,843.79,842.73,0.86700591]
[1766677620879,0.87707405,843.81,842.76,0.86700591]
[1766677621286,0.87707405,843.82,842.76,0.86700591]
[1766677621483,0.87707405,843.82,842.75,0.86700591]
[1766677622181,0.87707405,843.83,842.75,0.86700591]
[1766677622386,0.87707405,843.86,842.77,0.86700591]
[1766677622984,0.88532018,843.92,842.83,0.87376049]
[1766677623385,0.88532018,843.93,842.81,0.87376049]
[1766677624185,0.88532018,843.94,842.81,0.87376049]
[1766677624481,0.88532018,843.94,842.64,13.15287349]
[1766677624482,0.88532018,843.97,842.82,0.87376049]
[1766677624886,0.88532018,844.04,842.89,0.87376049]
[1766677625283,0.88532018,844.08,842.89,0.87376049]
[1766677626583,0.01081824,844.92,842.88,0.87376049]
[1766677626584,0.88532018,844.09,842.88,0.87376049]
[1766677627188,0.88532018,844.09,842.89,0.87376049]
[1766677627385,0.88532018,844.1,842.87,0.87376049]
[1766677627887,0.88532018,844.08,842.86,0.87376049]
[1766677628387,0.88532018,844.23,842.98,0.87376049]
[1766677628685,0.88532018,844.26,843.01,0.87376049]
[1766677628889,0.88532018,844.26,842.86,1.18848451]
[1766677628890,0.88532018,844.27,843.03,0.87376049]
[1766677629389,0.88532018,844.29,843.01,0.87376049]
[1766677629585,0.88532018,844.31,843.03,0.87376049]
[1766677629787,0.88532018,844.33,843.05,0.87376049]
[1766677630085,0.88532018,844.38,843.1,0.87376049]
[1766677630390,0.88532018,844.4,843.08,0.87376049]
[1766677631289,0.88532018,844.42,843.06,0.87376049]
[1766677632188,0.88532018,844.42,843.07,0.87376049]
[1766677632489,0.88532018,844.44,843.05,0.87376049]
[1766677633190,0.88532018,844.43,843.05,0.87376049]
[1766677633486,0.88532018,844.45,843.04,0.87376049]
[1766677633686,0.88532018,844.43,843.02,0.87376049]
[1766677633889,0.88532018,844.42,843.01,0.87376049]
[1766677634091,0.88532018,844.41,843.0,0.87376049]
[1766677634287,0.88532018,844.41,842.98,0.87376049]
[1766677635491,0.88532018,844.42,842.97,0.87376049]
[1766677636793,0.88532018,844.37,842.91,0.87376049]
[1766677637288,0.88532018,844.38,842.92,0.87376049]
[1766677637495,0.88532018,844.39,842.91,0.87376049]
[1766677637888,0.20597871,844.99,842.91,0.87376049]
[1766677637889,0.88532018,844.38,842.91,0.87376049]
[1766677638289,0.88532018,844.38,842.9,0.87376049]
[1766677639195,1.7736722,844.69,842.07,0.01011767]
[1766677639196,0.88532018,844.42,842.92,0.87376049]
[1766677639395,0.88532018,844.47,842.97,0.87376049]
[1766677639594,0.88532018,844.5,843.0,0.87376049]
[1766677639794,0.88532018,844.54,843.03,0.87376049]
[1766677640098,0.88532018,844.52,843.02,0.87376049]
[1766677640302,0.88532018,844.52,843.01,0.87376049]
[1766677640498,0.88532018,844.58,843.05,0.87376049]
[1766677640798,1.19064107,844.73,842.16,55.00815042]
[1766677640799,0.88532018,844.6,843.07,0.87376049]
[1766677641194,0.88532018,844.61,843.07,0.87376049]
[1766677641502,0.88532018,844.62,843.06,0.87376049]
[1766677642295,0.88532018,844.6,843.04,13.85651442]
[1766677642496,0.88532018,844.61,843.04,12.98275393]
[1766677643100,0.88532018,844.6,843.04,12.98275393]
[1766677643400,0.88532018,844.61,843.04,12.98275393]
[1766677644103,0.88532018,844.61,843.02,0.87376049]
[1766677644304,0.88532018,844.61,843.01,0.87376049]
[1766677645402,0.88532018,844.62,843.0,0.87376049]
[1766677646002,0.88532018,844.63,843.02,0.87376049]
[1766677646398,0.88532018,844.64,843.02,0.87376049]
[1766677646901,0.88532018,844.62,843.0,0.87376049]
[1766677647406,0.88532018,844.61,842.98,0.87376049]
[1766677648205,0.88532018,844.59,842.97,0.87376049]
[1766677648908,0.88532018,844.49,842.87,0.87376049]
[1766677649114,0.88532018,844.48,842.88,0.87376049]
[1766677649304,0.88532018,844.47,842.88,0.87376049]
[1766677649810,0.88532018,844.42,842.83,0.87376049]
[1766677650310,0.88532018,844.41,842.85,0.87376049]
[1766677651207,0.88532018,844.37,842.82,0.87376049]
[1766677651410,0.88532018,844.36,842.81,0.87376049]
[1766677651607,0.88532018,844.31,842.77,0.87376049]
[1766677652310,0.88532018,844.31,842.78,0.87376049]
[1766677652507,0.88532018,844.3,842.78,0.87376049]
[1766677653207,0.88532018,844.29,842.79,0.87376049]
[1766677653405,0.88532018,844.27,842.78,0.87376049]
[1766677654206,1.19064107,844.42,842.63,1.18848451]
[1766677654411,0.88038462,844.26,842.79,0.86856441]
[1766677654608,0.88038462,844.25,842.79,13.66777319]
[1766677655208,0.88038462,844.19,842.79,12.79920878]
[1766677655411,0.88038462,844.1,842.79,12.79920878]
[1766677655608,0.88038462,844.12,842.79,12.79920878]
[1766677655812,0.20597871,844.99,842.79,12.79920878]
[1766677655813,0.88038462,844.02,842.79,12.79920878]
[1766677656113,0.88038462,844.01,842.79,12.79920878]
[1766677657012,0.88038462,844.03,842.79,12.79920878]
[1766677657314,0.88038462,844.02,842.79,12.79920878]
[1766677658008,0.88038462,844.02,842.65,0.86856441]
[1766677658207,0.88038462,844.0,842.67,0.86856441]
[1766677659309,0.88038462,843.99,842.69,0.86856441]
[1766677660316,0.88038462,843.97,842.71,0.86856441]
[1766677661211,0.88038462,843.96,842.71,0.86856441]
[1766677662028,0.88335556,843.96,842.71,0.87189488]
[1766677662216,0.88335556,843.95,842.72,0.87189488]
[1766677662520,0.88335556,843.96,842.72,0.87189488]
[1766677663216,0.88335556,843.95,842.73,0.87189488]
[1766677663416,0.88335556,843.95,842.72,0.87189488]
[1766677664318,0.88335556,843.94,842.73,0.87189488]
[1766677664620,8.93179234,843.97,842.79,0.87189488]
[1766677666022,0.88335556,844.0,842.78,0.87189488]
[1766677666326,0.88335556,843.99,842.78,0.87189488]
[1766677666622,0.88335556,843.98,842.78,0.87189488]
[1766677670531,0.88335556,843.94,842.74,0.87189488]
[1766677671427,0.88335556,843.95,842.74,0.87189488]
[1766677672435,0.88335556,843.95,842.73,0.87189488]
[1766677674334,0.88335556,843.96,842.73,0.87189488]
[1766677675529,0.88335556,843.96,842.72,0.87189488]
[1766677678532,0.0133883,844.78,841.9,0.01153402]
[1766677678533,0.88335556,843.98,842.75,0.87189488]
[1766677679333,0.88335556,844.0,842.77,0.87189488]
[1766677679735,0.88335556,844.06,842.83,0.87189488]
[1766677681340,0.88335556,844.11,842.88,0.87189488]
[1766677681641,0.88335556,844.13,842.91,0.87189488]
[1766677681841,0.88335556,844.14,842.91,0.87189488]
[1766677682438,0.88335556,844.14,842.92,0.87189488]
[1766677684043,0.88335556,844.2,842.98,0.87189488]
[1766677684543,0.88335556,844.2,842.99,0.87189488]
[1766677685640,0.88335556,844.19,842.99,0.87189488]
[1766677686346,0.88335556,844.18,843.0,0.87189488]
[1766677687445,0.88335556,844.21,843.05,0.87189488]
[1766677687643,0.88335556,844.23,843.06,0.87189488]
[1766677687846,0.88335556,844.21,843.05,0.87189488]
[1766677688143,0.88335556,844.2,843.04,0.87189488]
[1766677688547,0.88335556,844.19,843.05,0.87189488]
[1766677689349,0.88335556,844.18,843.05,0.87189488]
[1766677689849,9.76625337,844.18,843.05,0.87189488]
[1766677690145,9.76625337,844.18,843.06,0.87189488]
[1766677690346,0.88335556,844.17,843.07,0.87189488]
[1766677690546,8.88289781,844.18,843.07,0.87189488]
[1766677690547,9.76625337,844.18,843.07,0.87189488]
[1766677690851,8.88289781,844.18,843.14,0.87189488]
[1766677692052,8.88289781,844.18,843.15,0.87189488]
[1766677692264,8.88289781,844.18,843.19,0.87189488]
[1766677692451,8.88289781,844.18,843.2,0.87189488]
[1766677692650,8.88289781,844.18,843.22,0.87189488]
[1766677693348,8.88289781,844.18,843.21,0.87189488]
[1766677693551,0.88335556,844.3,843.22,0.87189488]
[1766677694149,1.7736722,844.6,842.38,0.01512268]
[1766677694150,0.88335556,844.32,843.24,0.87189488]
[1766677694354,0.88335556,844.32,843.23,0.87189488]
[1766677694755,0.88335556,844.34,843.25,0.87189488]
[1766677694957,0.88335556,844.36,843.27,0.87189488]
[1766677695352,0.88335556,844.4,843.28,0.87189488]
[1766677696158,0.88335556,844.4,843.29,0.87189488]
[1766677696361,0.88335556,844.41,843.28,0.87189488]
[1766677696862,0.88335556,844.42,843.29,0.87189488]
[1766677697562,0.88335556,844.43,843.27,0.87189488]
[1766677698363,0.88335556,844.45,843.26,0.87189488]
[1766677699560,0.88335556,844.46,843.25,0.87189488]
[1766677700365,0.88335556,844.47,843.24,0.87189488]
[1766677702160,0.88335556,844.49,843.25,0.87189488]
[1766677702464,0.88335556,844.5,843.25,0.87189488]
[1766677702764,0.88335556,844.5,843.26,0.87189488]
[1766677703362,0.88335556,844.51,843.25,0.87189488]
[1766677705166,0.20617152,844.24,843.23,0.87189488]
[1766677705365,0.20617152,844.24,843.22,0.87189488]
[1766677706766,0.20617152,844.24,843.2,0.87189488]
[1766677707963,0.20617152,844.24,843.19,0.87189488]
[1766677708862,0.20617152,844.24,843.1,0.87189488]
[1766677709364,0.20617152,844.24,843.11,0.87189488]
[1766677710866,0.20617152,844.24,842.96,1.18848451]
[1766677710867,0.20617152,844.24,843.09,0.87189488]
[1766677711063,0.20617152,844.24,843.08,0.87189488]
[1766677711560,0.20617152,844.24,843.03,0.87189488]
[1766677711767,0.20617152,844.24,843.01,0.87189488]
[1766677711966,0.20617152,844.24,843.0,0.87189488]
[1766677712464,0.88335556,844.17,842.92,0.87189488]
[1766677713368,0.88335556,844.16,842.92,0.87189488]
[1766677715168,0.88335556,844.15,842.91,0.87189488]
[1766677715670,0.88335556,844.14,842.91,0.87189488]
[1766677716368,0.88335556,844.14,842.92,0.87189488]
[1766677716871,0.88335556,844.13,842.91,0.87189488]
[1766677717069,0.88335556,844.11,842.9,0.87189488]
[1766677718273,0.20617152,844.24,842.12,54.12625044]
[1766677718274,0.88335556,844.04,842.84,0.87189488]
[1766677719473,0.88335556,844.03,842.85,0.87189488]
[1766677719674,0.88335556,844.02,842.84,0.87189488]
[1766677721070,0.88335556,844.02,842.69,1.18848451]
[1766677721071,0.88335556,844.01,842.83,0.87189488]
[1766677721374,0.88335556,844.01,842.84,0.87189488]
[1766677722374,0.88335556,844.11,842.95,0.87189488]
[1766677722570,0.88335556,844.11,842.95,13.87404792]
[1766677723576,0.88335556,844.1,842.96,0.87189488]
[1766677724477,0.88335556,844.09,842.97,0.87189488]
[1766677730379,0.88335556,844.1,842.97,0.87189488]
[1766677733379,0.88335556,844.1,842.96,0.87189488]
[1766677734282,0.88335556,844.1,842.97,0.87189488]
[1766677734582,0.88335556,844.1,842.96,0.87189488]
[1766677735384,0.88335556,844.08,842.94,0.87189488]
[1766677735984,0.88335556,844.07,842.93,0.87189488]
[1766677736388,0.88335556,844.08,842.93,0.87189488]
[1766677737080,0.88335556,844.07,842.93,0.87189488]
[1766677737280,0.88335556,844.02,842.88,0.87189488]
[1766677737485,0.88335556,843.93,842.78,0.87189488]
[1766677737682,0.88335556,843.83,842.68,0.87189488]
[1766677737885,0.20617152,844.24,842.66,0.87189488]
[1766677737886,0.88335556,843.8,842.66,0.87189488]
[1766677738385,0.88335556,843.73,842.55,0.87189488]
[1766677738580,1.7736722,844.03,841.64,2.97121127]
[1766677738581,0.88335556,843.66,842.48,0.87189488]
[1766677738880,0.88335556,843.65,842.47,0.87189488]
[1766677739282,0.88335556,843.57,842.4,0.87189488]
[1766677739582,0.20617152,844.24,841.59,55.24535581]
[1766677739583,0.88335556,843.6,842.37,0.87189488]
[1766677740385,0.88335556,843.62,842.39,0.87189488]
[1766677740584,0.88335556,843.63,842.4,0.87189488]
[1766677740784,0.88335556,843.68,842.44,0.87189488]
[1766677741284,0.88335556,843.69,842.42,0.87189488]
[1766677741483,0.88335556,843.69,842.43,0.87189488]
[1766677742285,0.88335556,843.71,842.41,0.87189488]
[1766677743189,0.88335556,843.68,842.35,0.87189488]
[1766677743788,0.88335556,843.69,842.37,0.87189488]
[1766677744188,0.88335556,843.68,842.35,0.87189488]
[1766677744392,0.88335556,843.72,842.37,0.87189488]
[1766677744592,0.88335556,843.71,842.37,0.87189488]
[1766677745288,0.20617152,844.24,842.36,0.87189488]
[1766677745289,0.88335556,843.72,842.36,0.87189488]
[1766677746190,0.88335556,843.73,842.35,0.87189488]